bitfinex-derivatives/quotes_BTCF0:USTF0_20210705
["timestamp","ask_amount","ask_price","bid_price","bid_amount"]
[1625497938171,0.6998904,33672.0,33671.0,0.37657713]
[1625497938871,2.09816056,33672.0,33671.0,0.37657713]
[1625497939528,2.09816056,33672.0,33671.0,0.06287713]
[1625497939626,0.6998904,33672.0,33671.0,0.06287713]
[1625497941779,0.6998904,33672.0,33671.0,0.05895271]
[1625497941977,2.09914032,33672.0,33671.0,0.05895271]
[1625497942579,2.09914032,33672.0,33671.0,0.06287732]
[1625497943081,2.09914032,33672.0,33671.0,0.05895271]
[1625497943331,2.09914032,33672.0,33671.0,0.0628777]
[1625497944437,2.09914032,33672.0,33671.0,0.05895271]
[1625497945493,2.09914032,33672.0,33671.0,0.06287783]
[1625497948403,1.39924992,33672.0,33671.0,0.06287783]
[1625497948601,1.39924992,33672.0,33671.0,0.05895271]
[1625497948805,1.39924992,33672.0,33671.0,0.06287773]
[1625497949105,1.39924992,33672.0,33671.0,0.46076773]
[1625497949606,0.24057544,33673.0,33671.0,0.46076773]
[1625497950057,0.24057544,33673.0,33672.0,0.00392446]
[1625497950157,0.24057544,33673.0,33672.0,0.06292446]
[1625497952513,0.24057544,33673.0,33672.0,2.69060455]
[1625497952816,0.24057544,33673.0,33672.0,1.28917517]
[1625497955426,0.24057544,33673.0,33672.0,1.23017517]
[1625497955937,0.24057544,33673.0,33672.0,0.00392446]
[1625497956453,2.86060651,33673.0,33672.0,0.00392446]
[1625497957329,3.07028651,33673.0,33672.0,0.00392446]
[1625497962493,4.11822966,33673.0,33672.0,0.00392446]
[1625497963144,4.64227084,33673.0,33672.0,0.00392446]
[1625497971410,4.70127084,33673.0,33672.0,0.00392446]
[1625497971593,4.94184628,33673.0,33672.0,0.00392446]
[1625497971745,5.00084628,33673.0,33672.0,0.00392446]
[1625497971750,5.01658416,33673.0,33672.0,0.00392446]
[1625497971924,9.35108416,33673.0,33672.0,0.00392446]
[1625497972266,9.35108416,33673.0,33671.0,0.00392956]
[1625497972463,9.35108416,33673.0,33672.0,0.00392962]
[1625497972464,10.92078539,33673.0,33672.0,0.00392962]
[1625497972725,10.92078539,33673.0,33667.0,0.00392967]
[1625497973066,0.01573878,33672.0,33667.0,0.00392967]
[1625497973167,0.07473878,33672.0,33667.0,0.00392967]
[1625497973278,0.13373878,33672.0,33666.0,0.52576739]
[1625497973368,5.75254078,33668.0,33664.0,0.52579595]
[1625497973467,5.81154078,33668.0,33664.0,0.52579595]
[1625497973567,0.72172632,33665.0,33664.0,0.52579595]
[1625497973666,1.16305632,33665.0,33664.0,0.52579595]
[1625497973867,6.91098695,33665.0,33664.0,0.0039302]
[1625497974071,6.91098695,33665.0,33662.0,0.00393022]
[1625497974618,4.18061824,33663.0,33662.0,0.00393022]
[1625497974716,4.23961824,33663.0,33662.0,0.00393022]
[1625497974817,4.29861824,33663.0,33662.0,0.00393022]
[1625497977322,4.29861824,33663.0,33661.0,3.7596]
[1625497977423,4.29861824,33663.0,33661.0,4.28526701]
[1625497977927,4.17872972,33662.0,33661.0,4.28526701]
[1625497978028,4.23772972,33662.0,33661.0,4.28526701]
[1625497978124,4.29672972,33662.0,33661.0,4.28526701]
[1625497978327,4.29672972,33662.0,33661.0,3.7596]
[1625497979378,4.23772972,33662.0,33661.0,3.7596]
[1625497979628,2.84487784,33662.0,33661.0,4.28518262]
[1625497979730,2.84487784,33662.0,33661.0,4.28911268]
[1625497980129,1.62611069,33662.0,33661.0,5.3402637]
[1625497980230,1.56711069,33662.0,33661.0,5.3402637]
[1625497982134,1.56711069,33662.0,33661.0,5.3992637]
[1625497982536,0.52242826,33662.0,33661.0,6.62551757]
[1625497982936,1.56828103,33662.0,33661.0,6.62551757]
[1625497983036,1.56828103,33662.0,33661.0,6.85634757]
[1625497983389,0.52242826,33662.0,33661.0,6.85634757]
[1625497983591,0.52242826,33662.0,33661.0,7.09692301]
[1625497984141,0.52242826,33662.0,33661.0,8.49861365]
[1625497984851,0.08741812,33662.0,33661.0,8.49861365]
[1625497985400,0.35445441,33663.0,33661.0,8.49861365]
[1625497985501,0.35445441,33663.0,33661.0,8.58691365]
[1625497985602,0.52375595,33664.0,33661.0,8.58691365]
[1625497985803,0.52375595,33664.0,33661.0,8.64591365]
[1625497985902,0.52375595,33664.0,33662.0,0.0039291]
[1625497986002,0.24057544,33665.0,33663.0,3.67947339]
[1625497986201,0.24057544,33665.0,33663.0,3.79747339]
[1625497986401,0.24057544,33665.0,33664.0,0.00392907]
[1625497986504,0.24057544,33665.0,33664.0,3.74232048]
[1625497986602,0.24057544,33665.0,33664.0,3.80132048]
[1625497986703,0.24057544,33665.0,33664.0,3.81156253]
[1625497987604,1.28894155,33669.0,33664.0,4.05213797]
[1625497987905,1.28894155,33669.0,33668.0,2.2778432]
[1625497988104,1.28894155,33669.0,33668.0,2.5558432]
[1625497988204,1.28894155,33669.0,33668.0,2.55977229]
[1625497989156,1.28894155,33669.0,33668.0,2.5558432]
[1625497989456,1.28894155,33669.0,33668.0,2.55977242]
[1625497989607,1.28894155,33669.0,33668.0,2.80034786]
[1625497989861,1.28894155,33669.0,33668.0,2.74134786]
[1625497990360,1.28894155,33669.0,33668.0,2.52234786]
[1625497990662,1.34794155,33669.0,33668.0,2.52234786]
[1625497990762,3.96700111,33669.0,33668.0,0.24057544]
[1625497991062,5.5963624,33669.0,33668.0,0.24057544]
[1625497991162,5.5963624,33669.0,33664.0,1.29217341]
[1625497991362,5.8904024,33669.0,33664.0,1.29217341]
[1625497991572,5.8904024,33669.0,33664.0,0.24057544]
[1625497991573,2.26806763,33665.0,33664.0,0.24057544]
[1625497991665,2.56764307,33665.0,33664.0,0.24057544]
[1625497991812,2.56764307,33665.0,33664.0,0.24450313]
[1625497992013,3.96307381,33665.0,33664.0,0.24450313]
[1625497993720,3.96307381,33665.0,33664.0,0.00392769]
[1625497993941,4.02207381,33665.0,33664.0,0.00392769]
[1625497994032,4.02207381,33665.0,33662.0,1.05150729]
[1625497994119,4.71956348,33665.0,33664.0,0.35051397]
[1625497994620,4.71956348,33665.0,33663.0,0.35051668]
[1625497994974,4.35767964,33664.0,33663.0,0.35051668]
[1625497995173,4.47567964,33664.0,33663.0,0.35051668]
[1625497995626,4.47567964,33664.0,33662.0,0.35047494]
[1625497995724,4.71625508,33664.0,33662.0,0.35047494]
[1625497996023,4.35674746,33663.0,33662.0,0.35047494]
[1625497996123,4.41574746,33663.0,33662.0,0.35047494]
[1625497996224,4.47474746,33663.0,33662.0,0.35047494]
[1625497996328,4.41574746,33663.0,33662.0,0.35047494]
[1625497996426,4.47474746,33663.0,33662.0,0.35047494]
[1625497997428,6.04468043,33663.0,33660.0,0.01]
[1625497997675,0.48115088,33661.0,33660.0,0.01]
[1625497997778,5.27679982,33661.0,33660.0,0.01]
[1625497997978,5.27679982,33661.0,33658.0,0.35042246]
[1625497998477,4.36205859,33659.0,33658.0,0.35042246]
[1625497998578,4.42105859,33659.0,33658.0,0.35042246]
[1625497998676,4.48005859,33659.0,33658.0,0.35042246]
[1625497998978,4.48005859,33659.0,33657.0,0.35043472]
[1625497999430,4.36428176,33658.0,33657.0,0.35043472]
[1625497999630,4.48228176,33658.0,33657.0,0.35043472]
[1625497999731,4.7228572,33658.0,33657.0,0.35043472]
[1625497999933,4.7228572,33658.0,33656.0,0.35028059]
[1625498000534,1.2209161,33657.0,33656.0,0.35028059]
[1625498000634,2.96518161,33657.0,33656.0,0.35028059]
[1625498000733,3.02418161,33657.0,33656.0,0.35028059]
[1625498000833,3.02418161,33657.0,33656.0,0.35420939]
[1625498001736,3.26475705,33657.0,33656.0,0.35420939]
[1625498003112,3.20575705,33657.0,33656.0,0.35420939]
[1625498003508,0.93831652,33657.0,33656.0,0.70409985]
[1625498003739,0.99731652,33657.0,33656.0,0.70409985]
[1625498003943,2.04392603,33657.0,33656.0,0.70409985]
[1625498005097,2.04392603,33657.0,33656.0,0.0039288]
[1625498006400,2.04392603,33657.0,33656.0,0.35392613]
[1625498007202,1.98492603,33657.0,33656.0,0.35392613]
[1625498007303,1.98492603,33657.0,33656.0,0.41292613]
[1625498007403,1.98492603,33657.0,33656.0,0.35392613]
[1625498007651,1.98492603,33657.0,33656.0,0.34999733]
[1625498008238,2.04392603,33657.0,33654.0,0.69989023]
[1625498008452,2.04392603,33657.0,33655.0,0.00392879]
[1625498008555,1.51935231,33657.0,33655.0,0.00392879]
[1625498008756,1.51935231,33657.0,33653.0,0.69989199]
[1625498009009,1.51935231,33657.0,33654.0,0.00392889]
[1625498009110,2.96190825,33656.0,33654.0,0.00392889]
[1625498009204,3.02090825,33656.0,33654.0,0.00392889]
[1625498009557,1.74217738,33655.0,33654.0,0.00392889]
[1625498009760,1.98275282,33655.0,33654.0,0.00392889]
[1625498009858,2.04175282,33655.0,33654.0,0.00392889]
[1625498010110,2.04175282,33655.0,33654.0,0.06292889]
[1625498010308,2.04175282,33655.0,33654.0,0.00392889]
[1625498010409,0.99648123,33655.0,33654.0,0.76276863]
[1625498010811,0.93748123,33655.0,33654.0,0.76276863]
[1625498010911,0.58934529,33655.0,33654.0,1.87152712]
[1625498014319,0.58934529,33655.0,33654.0,3.09666282]
[1625498017179,0.58934529,33655.0,33654.0,3.03766282]
[1625498018131,0.08884529,33655.0,33654.0,3.03766282]
[1625498018259,0.69805483,33656.0,33654.0,3.59666282]
[1625498018361,0.69805483,33656.0,33654.0,3.68546282]
[1625498018644,0.69805483,33656.0,33654.0,2.45639823]
[1625498018645,0.62395927,33655.0,33654.0,2.45639823]
[1625498018854,0.45395927,33655.0,33654.0,2.46663405]
[1625498018961,0.45395927,33655.0,33654.0,2.47056053]
[1625498019248,1.04879015,33663.0,33654.0,6.67173074]
[1625498019350,1.04879015,33663.0,33654.0,6.68173074]
[1625498019541,1.04879015,33663.0,33655.0,0.01023631]
[1625498019654,1.04902377,33664.0,33662.0,1.0503629]
[1625498019742,1.04902377,33664.0,33663.0,3.6333]
[1625498019839,1.04902377,33664.0,33663.0,4.41402632]
[1625498019934,1.04902377,33664.0,33663.0,4.4179525]
[1625498020038,1.04902377,33664.0,33663.0,4.4769525]
[1625498020138,1.04926526,33665.0,33663.0,5.5273525]
[1625498020436,1.04096526,33665.0,33663.0,5.5273525]
[1625498020539,1.04096526,33665.0,33664.0,0.0039261]
[1625498020647,1.04096526,33665.0,33664.0,0.0629261]
[1625498020755,1.04096526,33665.0,33664.0,1.11328185]
[1625498022643,1.22477975,33667.0,33664.0,1.11328185]
[1625498022942,1.22477975,33667.0,33665.0,0.003926]
[1625498023043,1.22477975,33667.0,33665.0,0.062926]
[1625498023392,1.22477975,33667.0,33666.0,0.00392598]
[1625498023492,1.22477975,33667.0,33666.0,0.06292598]
[1625498027609,1.28377975,33667.0,33666.0,0.06292598]
[1625498027908,1.28377975,33667.0,33666.0,0.00392598]
[1625498028008,2.68353287,33667.0,33666.0,0.00392598]
[1625498028209,2.68353287,33667.0,33664.0,0.00393939]
[1625498028509,2.68353287,33667.0,33666.0,0.00393939]
[1625498028810,2.68353287,33667.0,33664.0,0.00393953]
[1625498029011,2.68353287,33667.0,33663.0,4.35502632]
[1625498029111,2.62017972,33665.0,33663.0,4.35502632]
[1625498029209,2.62017972,33665.0,33663.0,4.41402632]
[1625498029509,1.22250242,33664.0,33663.0,4.35502632]
[1625498029809,1.22250242,33664.0,33663.0,4.35896597]
[1625498030113,1.22250242,33664.0,33663.0,4.41796597]
[1625498030261,1.22250242,33664.0,33663.0,4.35896597]
[1625498030360,1.22250242,33664.0,33663.0,4.41796597]
[1625498030461,1.22250242,33664.0,33663.0,4.35896597]
[1625498030663,2.61954953,33664.0,33663.0,4.35896597]
[1625498030863,2.61954953,33664.0,33663.0,4.11839053]
[1625498030962,2.67854953,33664.0,33663.0,0.00393965]
[1625498031165,2.67854953,33664.0,33660.0,0.24057544]
[1625498031413,1.28150242,33664.0,33663.0,0.00393981]
[1625498031542,0.118,33664.0,33663.0,0.00393981]
[1625498031662,0.118,33664.0,33661.0,0.00394006]
[1625498031963,0.48115088,33662.0,33661.0,0.00394006]
[1625498032063,0.78801088,33662.0,33661.0,0.00394006]
[1625498032564,3.40448381,33662.0,33661.0,0.00394006]
[1625498033616,3.40448381,33662.0,33660.0,0.24057544]
[1625498033818,2.61626757,33661.0,33660.0,0.24057544]
[1625498033916,2.67526757,33661.0,33660.0,0.24057544]
[1625498034116,2.67526757,33661.0,33660.0,0.24451557]
[1625498043446,2.67526757,33661.0,33660.0,0.24057544]
[1625498043747,2.67526757,33661.0,33660.0,0.24451541]
[1625498044298,2.67526757,33661.0,33660.0,0.00393997]
[1625498044850,3.15641845,33661.0,33660.0,0.00393997]
[1625498045251,2.67526757,33661.0,33660.0,0.00393997]
[1625498046501,0.059,33661.0,33660.0,0.00393997]
[1625498046802,2.67853895,33661.0,33660.0,0.00393997]
[1625498047406,2.73753895,33661.0,33660.0,0.00393997]
[1625498047508,3.21868983,33661.0,33660.0,0.00393997]
[1625498048660,4.79063176,33661.0,33660.0,0.00393997]
[1625498048961,4.79063176,33661.0,33659.0,4.5162]
[1625498049462,4.73163176,33661.0,33659.0,4.5162]
[1625498049612,4.79063176,33661.0,33659.0,4.5162]
[1625498049712,4.19311626,33660.0,33659.0,4.5162]
[1625498049821,4.25211626,33660.0,33659.0,4.5162]
[1625498049917,4.31111626,33660.0,33659.0,4.5162]
[1625498050062,4.31111626,33660.0,33659.0,4.52014025]
[1625498050617,3.78710086,33660.0,33659.0,4.52014025]
[1625498050967,5.35942826,33660.0,33659.0,4.52014025]
[1625498058530,5.84057914,33660.0,33659.0,4.52014025]
[1625498059185,5.85628013,33660.0,33659.0,4.52014025]
[1625498061288,5.85628013,33660.0,33659.0,4.76560025]
[1625498062336,5.79728013,33660.0,33659.0,4.76560025]
[1625498062837,4.22495273,33660.0,33659.0,4.76560025]
[1625498067346,4.16595273,33660.0,33659.0,4.76560025]
[1625498068448,4.16595273,33660.0,33659.0,4.82460025]
[1625498068550,4.15025174,33660.0,33659.0,4.82460025]
[1625498068851,4.15025174,33660.0,33659.0,5.87704744]
[1625498069053,4.20925174,33660.0,33659.0,5.87704744]
[1625498071259,4.20925174,33660.0,33659.0,5.81804744]
[1625498071357,4.20925174,33660.0,33659.0,5.87704744]
[1625498071811,4.15025174,33660.0,33659.0,5.87704744]
[1625498074265,2.75254632,33660.0,33659.0,7.10502408]
[1625498075674,3.27758386,33660.0,33659.0,7.10502408]
[1625498076089,3.27758386,33660.0,33659.0,8.50830463]
[1625498076090,2.05456978,33660.0,33659.0,8.50830463]
[1625498076522,1.00618842,33660.0,33659.0,8.50830463]
[1625498076621,1.00618842,33660.0,33659.0,8.51856045]
[1625498079026,1.00618842,33660.0,33659.0,9.2201226]
[1625498081479,0.65656861,33660.0,33659.0,9.2201226]
[1625498081876,1.00710543,33660.0,33659.0,9.2201226]
[1625498082532,0.48115088,33660.0,33659.0,4.83485607]
[1625498082980,0.48115088,33660.0,33659.0,9.21946714]
[1625498082981,1.00698779,33660.0,33659.0,9.21946714]
[1625498083734,0.48115088,33660.0,33659.0,4.83485607]
[1625498084284,1.00719749,33660.0,33659.0,9.22018539]
[1625498085988,1.70854476,33660.0,33659.0,9.22018539]
[1625498086088,1.70854476,33660.0,33659.0,9.72018539]
[1625498086188,1.70854476,33660.0,33659.0,9.77918539]
[1625498086545,0.65666816,33660.0,33659.0,11.35797599]
[1625498087439,0.65666816,33660.0,33659.0,10.85797599]
[1625498087640,1.00733449,33660.0,33659.0,10.85797599]
[1625498087741,1.00733449,33660.0,33659.0,10.79897599]
[1625498088641,1.00733449,33660.0,33659.0,10.85797599]
[1625498088992,1.00733449,33660.0,33659.0,10.79897599]
[1625498089492,1.00533449,33660.0,33659.0,10.79897599]
[1625498089893,0.65464369,33660.0,33659.0,10.79897599]
[1625498090395,0.65464369,33660.0,33659.0,10.85797599]
[1625498093350,0.47915088,33660.0,33659.0,10.85797599]
[1625498094053,0.65466463,33660.0,33659.0,10.85797599]
[1625498095658,0.65466463,33660.0,33659.0,9.27918539]
[1625498096059,0.65466463,33660.0,33659.0,9.22018539]
[1625498096167,0.65466463,33660.0,33659.0,4.44826957]
[1625498096557,3.98379791,33660.0,33659.0,3.04496419]
[1625498096856,3.98379791,33660.0,33659.0,2.98596419]
[1625498097007,3.98379791,33660.0,33659.0,1.75807198]
[1625498097760,5.38476051,33660.0,33659.0,0.70559294]
[1625498103540,5.44376051,33660.0,33659.0,0.70559294]
[1625498103692,5.50276051,33660.0,33659.0,0.70559294]
[1625498103728,7.09100497,33660.0,33659.0,0.00394025]
[1625498104224,7.09100497,33660.0,33656.0,0.0039391]
[1625498104336,3.9531,33657.0,33656.0,0.0039391]
[1625498104540,3.9531,33657.0,33651.0,1.22774375]
[1625498104541,4.28212,33657.0,33652.0,0.7016015]
[1625498104643,4.34112,33657.0,33652.0,0.7016015]
[1625498104825,4.34112,33657.0,33656.0,0.00393937]
[1625498104826,4.35683063,33657.0,33656.0,0.00393937]
[1625498105026,4.34112,33657.0,33653.0,0.0039394]
[1625498105127,10.79297897,33657.0,33653.0,0.0039394]
[1625498105327,10.79297897,33657.0,33652.0,0.00393946]
[1625498105531,4.88167987,33654.0,33652.0,0.00393946]
[1625498105646,4.94067987,33654.0,33652.0,0.00393946]
[1625498105866,4.94067987,33654.0,33651.0,0.00393991]
[1625498105960,4.87857605,33653.0,33651.0,0.00393991]
[1625498106129,4.99657605,33653.0,33650.0,0.70141442]
[1625498106247,4.99657605,33653.0,33648.0,0.70143058]
[1625498106248,4.87592031,33652.0,33648.0,0.70143058]
[1625498106428,4.99392031,33652.0,33648.0,0.70143058]
[1625498106629,3.48295998,33649.0,33648.0,0.70143058]
[1625498106728,3.81886998,33649.0,33648.0,0.70143058]
[1625498106829,4.5405963,33649.0,33648.0,0.70143058]
[1625498106928,4.5405963,33649.0,33648.0,0.70537069]
[1625498108031,4.5405963,33649.0,33648.0,0.70143058]
[1625498108682,4.5405963,33649.0,33647.0,0.7008778]
[1625498109135,2.27660267,33649.0,33648.0,0.70086834]
[1625498109536,4.54021492,33649.0,33648.0,0.70086834]
[1625498109787,3.32124857,33649.0,33648.0,0.70086834]
[1625498111339,4.53946409,33649.0,33647.0,0.70068187]
[1625498111790,2.26239128,33648.0,33647.0,0.70068187]
[1625498111893,2.32139128,33648.0,33647.0,0.70068187]
[1625498112594,2.32139128,33648.0,33647.0,1.75161954]
[1625498112943,2.55610128,33648.0,33647.0,1.75161954]
[1625498113047,2.55610128,33648.0,33647.0,0.70068187]
[1625498115748,2.55610128,33648.0,33647.0,0.75968187]
[1625498116051,1.51198761,33648.0,33647.0,0.75968187]
[1625498116150,1.27727761,33648.0,33647.0,0.75968187]
[1625498116650,1.27727761,33648.0,33647.0,0.70068187]
[1625498117101,1.27727761,33648.0,33647.0,0.75968187]
[1625498117450,1.27727761,33648.0,33647.0,1.80986912]
[1625498117753,1.27727761,33648.0,33647.0,0.75968187]
[1625498118757,0.58114383,33648.0,33647.0,0.75968187]
[1625498119458,1.27754711,33648.0,33647.0,0.059]
[1625498119557,1.52891711,33648.0,33647.0,0.059]
[1625498119758,0.31037,33648.0,33647.0,0.059]
[1625498120059,1.52929758,33648.0,33647.0,0.059]
[1625498121610,0.8327924,33648.0,33647.0,0.75886003]
[1625498122663,1.52923017,33648.0,33647.0,0.059]
[1625498123164,1.52923017,33648.0,33647.0,0.06293961]
[1625498124117,0.31037,33648.0,33647.0,0.06293961]
[1625498124218,1.52924265,33648.0,33647.0,0.06293961]
[1625498125721,1.52924265,33648.0,33647.0,0.00393961]
[1625498125874,2.57383651,33648.0,33647.0,0.00393961]
[1625498126122,2.57383651,33648.0,33645.0,0.00392087]
[1625498126325,3.79318607,33648.0,33645.0,0.00392087]
[1625498126422,3.79318607,33648.0,33647.0,0.00392089]
[1625498126724,3.79318607,33648.0,33646.0,0.00392099]
[1625498126977,3.79318607,33648.0,33644.0,0.00392108]
[1625498127481,0.52293719,33645.0,33644.0,0.00392108]
[1625498127879,0.58193719,33645.0,33644.0,0.00392108]
[1625498128380,0.64093719,33645.0,33644.0,0.00392108]
[1625498128479,5.53083719,33645.0,33644.0,0.00392108]
[1625498128978,5.77141263,33645.0,33644.0,0.00392108]
[1625498129081,8.74653348,33645.0,33644.0,0.00392108]
[1625498129329,8.74653348,33645.0,33639.0,0.00392183]
[1625498129632,10.13975647,33645.0,33644.0,0.00391682]
[1625498129930,10.13975647,33645.0,33638.0,0.00391692]
[1625498130129,10.13975647,33645.0,33644.0,0.00391692]
[1625498130332,6.65748781,33645.0,33644.0,0.00391692]
[1625498130430,6.64169843,33645.0,33639.0,0.0039168]
[1625498130680,6.65750711,33645.0,33644.0,0.0039168]
[1625498130881,5.26428412,33645.0,33644.0,0.0039168]
[1625498130982,5.26428412,33645.0,33638.0,0.0039168]
[1625498131182,5.24847544,33645.0,33637.0,0.00391685]
[1625498131282,0.52241709,33641.0,33637.0,0.00391685]
[1625498131482,0.86270709,33641.0,33637.0,0.00391685]
[1625498132736,0.86270709,33641.0,33637.0,0.70280938]
[1625498132987,0.48115088,33638.0,33637.0,0.70280938]
[1625498133089,0.48115088,33638.0,33637.0,0.00391685]
[1625498133188,0.48115088,33638.0,33636.0,0.69865165]
[1625498133338,0.48115088,33638.0,33636.0,0.75765165]
[1625498133439,0.48115088,33638.0,33637.0,0.00391963]
[1625498134091,0.48115088,33638.0,33637.0,0.70256433]
[1625498134392,0.48115088,33638.0,33637.0,0.00391963]
[1625498135545,0.48115088,33638.0,33637.0,0.29983963]
[1625498135897,0.48115088,33638.0,33637.0,0.99829814]
[1625498137252,0.48115088,33638.0,33637.0,1.05729814]
[1625498137852,0.48115088,33638.0,33637.0,1.11629814]
[1625498138053,0.48115088,33638.0,33637.0,3.38599897]
[1625498138955,0.48115088,33638.0,33637.0,4.78290012]
[1625498139052,0.24057544,33638.0,33637.0,5.02347556]
[1625498140205,0.24057544,33638.0,33637.0,3.62657441]
[1625498140305,0.24057544,33638.0,33637.0,3.56757441]
[1625498142469,0.24057544,33638.0,33637.0,2.34542781]
[1625498144423,0.24057544,33638.0,33637.0,3.56835051]
[1625498145675,0.23757544,33638.0,33637.0,3.56835051]
[1625498148180,0.23757544,33638.0,33637.0,3.56443088]
[1625498148281,0.23757544,33638.0,33637.0,3.56835747]
[1625498148834,0.23757544,33638.0,33637.0,4.96714692]
[1625498151187,0.23757544,33638.0,33637.0,3.56835747]
[1625498151587,0.23757544,33638.0,33637.0,4.96801151]
[1625498155801,0.23757544,33638.0,33637.0,4.97827246]
[1625498156705,0.23757544,33638.0,33637.0,4.96801151]
[1625498157857,0.23757544,33638.0,33637.0,4.97827723]
[1625498159560,0.23757544,33638.0,33637.0,4.73770179]
[1625498159668,0.23757544,33638.0,33637.0,4.67870179]
[1625498159763,0.76216466,33638.0,33637.0,4.66843607]
[1625498159862,0.76216466,33638.0,33637.0,4.72743607]
[1625498160316,2.5086662,33638.0,33637.0,3.32778203]
[1625498160413,1.98451459,33638.0,33637.0,3.32778203]
[1625498160763,2.50869416,33638.0,33637.0,3.32778203]
[1625498161164,2.7492696,33638.0,33637.0,3.32778203]
[1625498163170,2.7492696,33638.0,33637.0,4.73219252]
[1625498163971,1.70114104,33638.0,33637.0,4.73219252]
[1625498164671,1.70114104,33638.0,33637.0,4.74247196]
[1625498165475,1.4605656,33638.0,33637.0,5.30147196]
[1625498165775,1.4605656,33638.0,33637.0,5.31027308]
[1625498165956,1.22299016,33638.0,33637.0,5.31027308]
[1625498166229,1.16399016,33638.0,33637.0,5.25127308]
[1625498166525,0.26319687,33642.0,33637.0,8.58633589]
[1625498166738,0.26319687,33642.0,33637.0,8.64533589]
[1625498166842,0.26319687,33642.0,33638.0,0.01271951]
[1625498166995,0.26319687,33642.0,33639.0,0.5]
[1625498167039,0.70109898,33644.0,33639.0,0.5]
[1625498167040,0.61412152,33644.0,33641.0,5.26561525]
[1625498167128,0.43572152,33644.0,33642.0,0.5]
[1625498167228,0.43572152,33644.0,33643.0,0.48115088]
[1625498167349,0.43572152,33644.0,33643.0,0.99142393]
[1625498167532,0.43572152,33644.0,33643.0,1.05042393]
[1625498167629,0.43572152,33644.0,33643.0,1.05434258]
[1625498167730,0.24057544,33645.0,33643.0,6.31960658]
[1625498167831,0.24057544,33645.0,33644.0,0.0102728]
[1625498167958,0.24057544,33645.0,33644.0,0.7194828]
[1625498168030,0.24057544,33645.0,33644.0,0.7784828]
[1625498168133,0.24057544,33645.0,33644.0,0.84140145]
[1625498168232,0.24057544,33645.0,33644.0,6.10659275]
[1625498168882,0.24057544,33646.0,33644.0,6.10659275]
[1625498168981,0.24057544,33646.0,33644.0,6.19569275]
[1625498169182,0.17562581,33647.0,33644.0,6.19569275]
[1625498169282,0.17562581,33647.0,33644.0,6.43626819]
[1625498169483,0.17562581,33647.0,33646.0,5.26400785]
[1625498169686,0.17562581,33647.0,33646.0,5.88200785]
[1625498169790,0.17562581,33647.0,33646.0,5.89619186]
[1625498169991,0.17563384,33648.0,33646.0,5.89619186]
[1625498170235,0.17563384,33648.0,33647.0,0.00391819]
[1625498170336,0.17563384,33648.0,33647.0,0.50391819]
[1625498170438,0.17563384,33648.0,33647.0,0.62191819]
[1625498170885,0.17562977,33651.0,33647.0,5.8848739]
[1625498171344,0.52386817,33652.0,33650.0,0.48115088]
[1625498171437,0.52386817,33652.0,33651.0,0.5]
[1625498171536,0.9282,33653.0,33651.0,0.89064]
[1625498171636,0.9282,33653.0,33651.0,6.28937113]
[1625498171835,0.9282,33653.0,33652.0,0.00391855]
[1625498171937,0.9282,33653.0,33652.0,0.57312933]
[1625498172040,0.9282,33653.0,33652.0,0.63212933]
[1625498172286,0.9282,33653.0,33652.0,3.59820289]
[1625498172386,0.9282,33653.0,33652.0,5.86637679]
[1625498172839,0.9282,33653.0,33652.0,3.79610255]
[1625498173241,0.9282,33653.0,33652.0,3.78589177]
[1625498173340,0.9282,33653.0,33652.0,4.02646721]
[1625498174647,0.9196,33653.0,33652.0,4.02646721]
[1625498177598,0.9196,33653.0,33652.0,2.63066789]
[1625498179200,0.9196,33653.0,33652.0,4.01535918]
[1625498179602,0.9196,33653.0,33652.0,2.63066789]
[1625498179702,0.9196,33653.0,33652.0,2.57166789]
[1625498179803,0.9196,33653.0,33652.0,2.63066789]
[1625498182057,0.9196,33653.0,33652.0,1.40934348]
[1625498183113,0.9196,33653.0,33652.0,2.62160196]
[1625498185327,0.9196,33653.0,33652.0,2.56260196]
[1625498185420,0.9196,33653.0,33652.0,2.50360196]
[1625498185519,0.9196,33653.0,33652.0,1.35034348]
[1625498186673,0.7266,33653.0,33652.0,1.35034348]
[1625498186772,0.7266,33653.0,33652.0,1.49804348]
[1625498187774,0.7266,33653.0,33652.0,1.99804348]
[1625498189330,0.24057544,33654.0,33652.0,1.99804348]
[1625498189583,0.24057544,33654.0,33653.0,2.25187056]
[1625498189677,0.24057544,33654.0,33653.0,2.75578834]
[1625498189777,0.24057544,33654.0,33653.0,2.81478834]
[1625498190027,0.24057544,33654.0,33653.0,2.87378834]
[1625498192135,0.24057544,33654.0,33653.0,1.60224265]
[1625498192234,0.24057544,33654.0,33653.0,1.66124265]
[1625498192888,0.24057544,33654.0,33653.0,1.60224265]
[1625498192989,0.24057544,33654.0,33653.0,1.54324265]
[1625498193140,0.24057544,33654.0,33653.0,1.04324265]
[1625498193439,0.24057544,33654.0,33653.0,0.00391778]
[1625498194290,0.24057544,33654.0,33653.0,0.33437778]
[1625498194390,0.24057544,33654.0,33653.0,0.39337778]
[1625498194941,0.24057544,33654.0,33653.0,1.4322508]
[1625498195040,0.24057544,33654.0,33653.0,1.9322508]
[1625498195996,0.24057544,33654.0,33653.0,1.8732508]
[1625498196095,0.24057544,33654.0,33653.0,3.14382338]
[1625498196294,0.24057544,33654.0,33653.0,2.58482338]
[1625498196395,0.24057544,33654.0,33653.0,2.52582338]
[1625498196527,0.24057544,33654.0,33653.0,1.3142508]
[1625498196594,0.45617544,33654.0,33653.0,1.3142508]
[1625498197397,0.45617544,33654.0,33653.0,0.27537778]
[1625498197494,0.45617544,33654.0,33653.0,0.00391778]
[1625498198607,0.51517544,33654.0,33653.0,0.00391778]
[1625498199052,1.56452464,33654.0,33653.0,0.00391778]
[1625498199505,2.78874141,33654.0,33653.0,0.00391778]
[1625498203061,2.54816597,33654.0,33653.0,0.00391778]
[1625498203512,2.54816597,33654.0,33652.0,0.00392213]
[1625498203713,2.54816597,33654.0,33653.0,0.00392213]
[1625498203817,2.54816597,33654.0,33653.0,0.48507301]
[1625498203913,0.3336,33654.0,33653.0,0.48507301]
[1625498204468,4.0078062,33654.0,33653.0,0.48507301]
[1625498205215,4.0078062,33654.0,33653.0,0.00392213]
[1625498205335,4.02358233,33654.0,33653.0,0.00392213]
[1625498205632,4.0078062,33654.0,33650.0,0.00392255]
[1625498205828,0.24057544,33651.0,33650.0,0.00392255]
[1625498205917,0.29957544,33651.0,33648.0,0.00392255]
[1625498206016,0.35857544,33651.0,33648.0,0.00392255]
[1625498206117,0.35857544,33651.0,33650.0,0.00392265]
[1625498206420,0.35857544,33651.0,33648.0,0.00392267]
[1625498206518,0.35857544,33651.0,33649.0,3.6641]
[1625498206769,3.67463817,33650.0,33649.0,3.6641]
[1625498206918,3.73363817,33650.0,33649.0,3.6641]
[1625498207021,3.79263817,33650.0,33649.0,3.6641]
[1625498207172,3.79263817,33650.0,33649.0,3.66802269]
[1625498207473,3.79263817,33650.0,33649.0,3.6641]
[1625498208977,3.73363817,33650.0,33649.0,3.6641]
[1625498209078,3.73363817,33650.0,33649.0,3.66802253]
[1625498209275,2.333801,33650.0,33649.0,3.66802253]